[Event "Velammal AICF Women GM 2024"]
[Site "Chennai"]
[Date "2024.03.21"]
[Round "5.2"]
[White "Sedina, Elena"]
[Black "Mahalakshmi, M."]
[Result "1-0"]
[ECO "B12"]
[WhiteElo "2161"]
[BlackElo "2242"]
[Annotator "TA"]
[PlyCount "111"]
[EventDate "2024.03.18"]
[EventType "tourn"]
[EventCountry "IND"]
[SourceTitle "playchess.com"]
[Source "ChessBase"]
[SourceQuality "1"]
[TimeControl "5400+30"]

{[%evp 22,111,-25,-43,-26,-35,-38,-45,0,-43,-48,-39,-35,-43,-41,-45,-45,-43,-43,-55,-54,-54,-57,-62,-40,-58,-51,-54,-70,-94,-91,-82,-46,-93,-73,-124,-85,-94,-43,-106,-105,-139,-125,-150,-157,-147,-153,-147,-140,-178,-166,-200,-183,-353,-223,-319,-313,-362,-312,-285,-316,-279,0,0,2,-17,390,393,397,397,371,361,344,275,317,291,395,359,407,340,476,479,488,433,666,654,709,695,29988,29989,29987,29988]} 1. e4 {[%emt 0:02:33]} c6 {[%emt 0:00:01]} 2. d4 {[%emt 0:00:22]} d5 {[%emt 0:00:02]} 3. e5 {[%emt 0:00:25]} Bf5 {[%emt 0:00:05]} 4. h4 {[%emt 0:00:15]} a6 {[%emt 0:00:28]} 5. h5 {[%emt 0:08:54]} h6 {[%emt 0:02:42]} 6. c3 {[%emt 0:09:58] B12: Caro-Kann (Vorstoß-Variante).} e6 {[%emt 0:00:48]} 7. Bd3 $146 {[%emt 0:00:27]} ({Predecessor:} 7. f3 Bh7 8. f4 Nd7 9. Bd3 Bxd3 10. Qxd3 c5 11. Nf3 Qb6 12. b3 Ne7 13. Be3 {1-0 Lobanov,I (1948)-Rasstriguine,A (2111) Moscow op-B 2009 (6)}) 7... Ne7 {[%emt 0:02:11]} 8. Ne2 {[%emt 0:01:20]} Nd7 {[%emt 0:05:10]} 9. Ng3 {[%emt 0:06:42]} Bxd3 {[%emt 0:01:04]} 10. Qxd3 {[%emt 0:00:03]} c5 {[%emt 0:00:09]} 11. O-O {[%emt 0:03:20]} Nc6 {[%emt 0:01:09]} 12. Be3 {[%emt 0:06:57]} Be7 {[%emt 0:08:30]} 13. f4 {[%emt 0:02:17]} Qb6 {[%emt 0:04:19]} 14. Nd2 {[%emt 0:19:51]} O-O-O {[%emt 0:02:51]} 15. f5 c4 16. Qe2 {[%emt 0:15:33]} Qxb2 {[%emt 0:09:32]} 17. Rfc1 {[%emt 0:06:58]} Qb6 {[%emt 0:07:53]} 18. Rab1 {[%emt 0:03:27]} Qa5 {[%emt 0:02:15]} 19. Qg4 {[%emt 0:06:55]} Ba3 {[%emt 0:01:34]} 20. fxe6 {[%emt 0:01:57]} fxe6 {[%emt 0:00:01]} 21. Re1 {[%emt 0:00:47]} Rde8 {[%emt 0:05:06]} 22. Ne2 $1 {[%emt 0:00:16]} Nd8 {[%emt 0:03:37]} 23. Rf1 {[%emt 0:01:17]} (23. Qxg7 $2 Reg8 $19) 23... Rhg8 {[%emt 0:04:19]} 24. Nf3 {[%emt 0:00:25]} Qa4 {[%emt 0:11:15]} 25. Bd2 {[%emt 0:01:18]} Qc2 {[%emt 0:02:03]} 26. Nf4 {[%emt 0:00:04]} Kc7 {[%emt 0:06:21]} 27. Kh1 {[%emt 0:00:57]} (27. Ra1 $15 {ist überlegen.}) 27... Nf8 $17 {[%emt 0:03:49]} 28. Qh3 {[%emt 0:00:25]} (28. Rfd1 $142) 28... Nf7 {[%emt 0:04:24]} 29. Qg4 {[%emt 0:00:39]} Kc6 {[%emt 0:04:33]} (29... Kb8 $17) 30. Rfd1 {[%emt 0:00:34]} ({Günstiger ist} 30. Rbe1 $15) 30... b5 $17 {[%emt 0:03:33]} 31. Be1 {[%emt 0:00:25]} g5 {[%emt 0:01:39]} 32. Bd2 {[%emt 0:00:37]} (32. hxg6 $2 Nxg6 33. Nxe6 Nh4 $19 (33... Qxa2 $2 34. Ra1 $18) (33... Ngxe5 34. dxe5 Qxa2 35. Nfd4+ Kb6 36. Qf3 $18)) 32... Qf5 {[%emt 0:01:08]} (32... gxf4 33. Qxg8 Qf5 34. Kg1 $11) 33. Qg3 {[%emt 0:00:22]} Nd7 {[%emt 0:01:16]} 34. Ne2 {[%emt 0:00:36]} Nd8 {[%emt 0:01:45]} 35. Rf1 {[%emt 0:00:09]} Qc2 {[%emt 0:00:57]} 36. Rbd1 {[%emt 0:00:49]} Ref8 {[%emt 0:00:24]} (36... Qxa2 37. Ra1 Qb3 38. Nc1 Bxc1 39. Rfxc1 $11) 37. Qg4 $2 {[%emt 0:00:31]} (37. Rfe1 {ist wohl besser.}) 37... Rf7 {[%emt 0:01:11]} (37... Qxa2 $2 38. Ra1 Qb2 39. Rfd1 $19) 38. Ng3 {[%emt 0:00:26]} (38. Rfe1 $142) 38... Rgf8 $19 {[%emt 0:00:24]} ({Keinesfalls} 38... Qxa2 39. Kh2 $19) 39. Kg1 {[%emt 0:00:27]} Bb2 {[%emt 0:00:47]} (39... Qxa2 40. Qh3 $19) 40. Ne1 {[%emt 0:00:25]} Rxf1+ {[%emt 0:00:25]} 41. Nxf1 {[%emt 0:00:02]} Qe4 $2 {[%emt 0:00:43]} (41... Qh7 $19 {Droht stark ...Nb6.} 42. Qe2 Nb6 43. Bxg5 Bxc3 (43... hxg5 $2 44. Qxb2 Qxh5 45. Nf3 $19)) 42. Qxe4 $11 {[%emt 0:00:22]} dxe4 {[%emt 0:00:01]} 43. Nc2 {[%emt 0:00:31] [#]} b4 $2 {[%emt 0:01:02][%mdl 8192]} (43... Nb6 $1 $11 {und Schwarz steht sicher.} 44. Ng3 e3 45. Nxe3 Nd5) 44. Nxb4+ $18 {[%emt 0:00:14]} ({Schwächer ist} 44. cxb4 c3 $16) 44... Kc7 {[%emt 0:01:48]} 45. Rb1 {[%emt 0:01:17]} ({Jedoch nicht} 45. Nxa6+ Kc6 46. Ne3 Nb6) 45... Ba3 {[%emt 0:00:00]} 46. Nxa6+ {[%emt 0:00:10]} Kc6 {[%emt 0:00:00]} 47. Nb4+ {[%emt 0:00:49]} Kc7 {[%emt 0:00:03]} 48. Ng3 {[%emt 0:00:39]} Nb6 {[%emt 0:00:32]} 49. Nxe4 {[%emt 0:00:15]} Nb7 {[%emt 0:00:33]} 50. Bc1 {[%emt 0:00:53]} Bxc1 {[%emt 0:00:29]} 51. Rxc1 {[%emt 0:00:01]} Rf4 {[%emt 0:00:24]} 52. Nf6 {[%emt 0:00:27]} Na4 {[%emt 0:00:36]} (52... Nd7 $142 53. Nxd7 Kxd7) 53. d5 $18 {[%emt 0:00:29]} Nbc5 {[%emt 0:00:38]} 54. dxe6 {[%emt 0:00:33]} Kd8 {[%emt 0:00:07]} 55. Nc6+ {[%emt 0:00:42]} Kc7 {[%emt 0:00:22]} 56. e7 {[%emt 0:00:02]} 1-0

[Event "Velammal AICF Women GM 2024"]
[Site "Chennai"]
[Date "2024.03.21"]
[Round "5.3"]
[White "Maisuradze, Nino"]
[Black "Velpula Sarayu"]
[Result "1/2-1/2"]
[ECO "A69"]
[WhiteElo "2254"]
[BlackElo "2389"]
[Annotator "TA"]
[PlyCount "77"]
[EventDate "2024.03.18"]
[EventType "tourn"]
[EventCountry "IND"]
[SourceTitle "playchess.com"]
[Source "ChessBase"]
[SourceQuality "1"]
[TimeControl "5400+30"]

{[%evp 21,77,0,0,8,0,0,1,7,0,0,0,0,5,1,0,9,0,0,0,0,0,0,0,0,0,0,20,0,40,40,40,40,40,40,40,40,40,40,40,40,40,39,39,39,40,40,40,40,40,40,40,40,40,0,47,0,49,0]} 1. d4 {[%emt 0:00:04]} Nf6 {[%emt 0:00:28]} 2. c4 {[%emt 0:00:33]} g6 {[%emt 0:00:28]} 3. Nc3 {[%emt 0:00:05]} Bg7 {[%emt 0:00:29]} 4. e4 {[%emt 0:00:17]} d6 {[%emt 0:00:28]} 5. f4 {[%emt 0:06:44]} c5 {[%emt 0:00:31]} 6. d5 {[%emt 0:00:03]} O-O {[%emt 0:00:31]} 7. Nf3 {[%emt 0:00:02]} e6 {[%emt 0:00:30]} 8. Be2 {[%emt 0:00:09]} exd5 {[%emt 0:00:33]} 9. cxd5 {[%emt 0:00:04]} Nbd7 {[%emt 0:00:27]} 10. O-O {[%emt 0:00:16]} Re8 {[%emt 0:00:31][%cal Bf8e8,Be8e4,Be4d4][%mdl 32]} 11. Nd2 {[%emt 0:01:57]} c4 {[%emt 0:00:30][%cal Ob7b5]} 12. Kh1 {[%emt 0:05:47]} (12. Nxc4 Nxe4 13. Bd2 Ndc5 $17) 12... b5 {[%emt 0:00:30]} 13. Nxb5 {[%emt 0:03:11]} Nxe4 {[%emt 0:00:31]} 14. Nxe4 {[%emt 0:06:26] The position is equal.} (14. Bxc4 Nb6 15. Nxe4 Nxc4 $17) 14... Rxe4 {[%emt 0:00:14]} 15. Nxd6 {[%emt 0:13:57]} Rd4 16. Qc2 {[%emt 0:04:44][%cal Oc1e3]} Nb6 {[%emt 0:01:59]} 17. Nxc8 {[%emt 0:02:11]} Rxc8 {[%emt 0:00:07]} 18. Be3 {[%emt 0:04:09]} Rxd5 {[%emt 0:00:11]} 19. Rad1 {[%emt 0:05:11]} Qe7 {[%emt 0:24:20]} 20. Bxb6 {[%emt 0:02:03]} Rxd1 {[%emt 0:00:14]} 21. Rxd1 {[%emt 0:00:08]} axb6 {[%emt 0:00:26]} 22. Bxc4 Qc7 {[%emt 0:18:17][%csl LRc4,LRf4]} 23. Rc1 {[%emt 0:03:30][%cal Oc4f7] [#] Threatens to win with Bxf7+!} Rd8 {[%emt 0:02:39]} (23... Qxf4 $2 {too greedy.} 24. Bxf7+ Kxf7 25. Qxc8 $18) 24. b3 {[%emt 0:04:13]} Bh6 {[%emt 0:03:19][%cal Bg7h6,Bh6f8,Bf8c5][%mdl 32]} ({Much weaker is} 24... Qxf4 25. Rf1 Qe3 26. Rf3 $14 (26. Bxf7+ Kh8 $14)) (24... b5 $5 25. Be2 Qxf4 $11) 25. g3 {[%emt 0:03:27]} Bf8 {[%emt 0:05:43]} 26. Bf1 {[%emt 0:05:11][%cal Bc4f1,Bf1g2,Bg2d5][%mdl 32]} Qa7 {[%emt 0:09:18]} 27. a4 {[%emt 0:01:37]} Bc5 {[%emt 0:02:11]} 28. Rd1 {[%emt 0:00:32]} Qb7+ {[%emt 0:05:28]} 29. Bg2 {[%emt 0:00:12]} Qe7 {[%emt 0:00:05]} 30. Bd5 {[%emt 0:06:02]} (30. Bf3 {simplifies} Rxd1+ 31. Qxd1 Qe3 32. Kg2) 30... Kg7 {[%emt 0:02:09]} 31. Kg2 {[%emt 0:04:09]} Qe3 {[%emt 0:02:11]} 32. Qb2+ {[%emt 0:01:38]} f6 {[%emt 0:00:48][%cal Od8d5] [#] ...Rxd5! would now be deadly.} 33. Qd2 {[%emt 0:00:42]} Qe8 {[%emt 0:01:08]} 34. Qd3 {[%emt 0:01:37]} Rd7 {[%emt 0:03:47]} 35. Qb5 {[%emt 0:05:22] Black must now prevent Bc6.} Qd8 {[%emt 0:01:59] Black is weak on the light squares} 36. Qc4 {[%emt 0:00:05][%cal Oa4a5]} Qe7 {[%emt 0:00:45]} 37. Qd3 {[%emt 0:01:14]} Qe8 $1 {[%emt 0:00:54]} 38. Qb5 {[%emt 0:00:53] Strongly threatening Bc6.} Qd8 $1 {[%emt 0:02:06]} 39. Qd3 {[%emt 0:01:58] Weighted Error Value: White=0.05 (flawless) /Black=0.02 (flawless) .  Mistake:       	White=1     	---        Inaccurate:     	---       	Black=1      OK:         	White=12    	Black=11     Best:        	White=3     	---        Strong:       	---       	Black=2} (39. Qa6 $14 {deserves consideration.}) 1/2-1/2

[Event "Velammal AICF Women GM 2024"]
[Site "Chennai"]
[Date "2024.03.21"]
[Round "5.4"]
[White "Gomes, Mary Ann"]
[Black "Rindhiya V"]
[Result "1-0"]
[ECO "A11"]
[WhiteElo "2322"]
[BlackElo "1953"]
[Annotator "TA"]
[PlyCount "63"]
[EventDate "2024.03.18"]
[EventType "tourn"]
[EventCountry "IND"]
[SourceTitle "playchess.com"]
[Source "ChessBase"]
[SourceQuality "1"]
[TimeControl "5400+30"]

{[%evp 15,63,0,0,-31,-14,-9,27,17,41,38,29,22,120,105,102,102,109,81,118,120,130,129,186,181,209,208,192,215,214,206,268,184,224,225,289,297,276,291,548,572,572,552,565,536,666,702,689,699,5859,5835]} 1. Nf3 {[%emt 0:01:33]} d5 {[%emt 0:00:06]} 2. e3 {[%emt 0:00:06]} Nf6 {[%emt 0:00:34]} 3. c4 {[%emt 0:00:11]} c6 {[%emt 0:00:57]} 4. Nc3 {[%emt 0:00:34]} e6 {[%emt 0:04:49]} 5. b3 {[%emt 0:03:14]} Nbd7 {[%emt 0:01:55]} 6. Bb2 {[%emt 0:00:07]} Bd6 {[%emt 0:04:08]} 7. Qc2 {[%emt 0:01:18]} O-O {[%emt 0:02:14]} 8. Be2 {[%emt 0:00:07]} Re8 {[%emt 0:07:46]} 9. h4 {[%emt 0:03:30]} e5 {[%emt 0:13:54]} 10. cxd5 {[%emt 0:00:08]} cxd5 {[%emt 0:02:42]} 11. Nb5 {[%emt 0:00:05] White has an edge.} Nb6 {[%emt 0:01:30]} 12. Nxd6 {[%emt 0:00:36]} Qxd6 {[%emt 0:00:04]} 13. Rc1 {[%emt 0:09:46]} Re7 {[%emt 0:16:32] [#]} (13... d4 $11) 14. Qc5 $1 $16 {[%emt 0:04:53]} Qxc5 {[%emt 0:00:25]} 15. Rxc5 {[%emt 0:00:06]} Nbd7 {[%emt 0:01:22]} 16. Rc2 {White is more active.} e4 {[%emt 0:16:36]} 17. Nd4 {[%emt 0:05:46]} Ne5 {[%emt 0:04:17]} 18. O-O {[%emt 0:00:14]} Bg4 {[%emt 0:02:24]} (18... a6 $16 19. Ba3 Re8) 19. f3 $18 {[%emt 0:03:24]} exf3 {[%emt 0:02:23]} 20. gxf3 {[%emt 0:01:26]} Bh3 {[%emt 0:00:14]} 21. Rfc1 {[%emt 0:00:26]} Ng6 {[%emt 0:00:33]} 22. Kf2 {[%emt 0:02:53]} Be6 {[%emt 0:04:00]} 23. Rh1 {[%emt 0:02:29]} h5 {[%emt 0:02:12]} 24. Rg1 {[%emt 0:06:37]} Kh8 {[%emt 0:04:33]} 25. Ba3 {[%emt 0:06:14]} Ree8 {[%emt 0:00:49]} 26. Rc7 {[%emt 0:01:42] [#] And now Nxe6 would win.} Nxh4 $2 {[%emt 0:03:54]} (26... Bd7 27. Rxb7 Nxh4) 27. Nxe6 {[%emt 0:04:32] White is clearly winning.} Rxe6 {[%emt 0:00:51]} 28. Rxf7 {[%emt 0:00:10]} Nf5 {[%emt 0:02:07]} 29. Bd3 {[%emt 0:00:43]} Nh6 {[%emt 0:00:20]} 30. Rxb7 {[%emt 0:00:25]} Ne8 {[%emt 0:00:43] Black is weak on the dark squares} 31. Bb2 {[%emt 0:00:49] A strong pair of Bishops.} Nf6 {[%emt 0:00:34]} 32. Rgxg7 {[%emt 0:00:58] Black got outplayed after the opening.   Weighted Error Value: White=0.09 (flawless) /Black=0.51.  Mistake:       	---       	Black=3      Inaccurate:     	White=1     	Black=3      OK:         	White=12    	Black=4      Best:        	White=2     	Black=1      Strong:       	White=1     	---} 1-0

[Event "Velammal AICF Women GM 2024"]
[Site "Chennai"]
[Date "2024.03.21"]
[Round "5.5"]
[White "Franco Valencia, Angela"]
[Black "Uuriintuya, Uurtsaikh"]
[Result "0-1"]
[ECO "B34"]
[WhiteElo "2095"]
[BlackElo "2288"]
[Annotator "TA"]
[PlyCount "94"]
[EventDate "2024.03.18"]
[EventType "tourn"]
[EventCountry "IND"]
[SourceTitle "playchess.com"]
[Source "ChessBase"]
[SourceQuality "1"]
[TimeControl "5400+30"]

{[%evp 13,94,6,12,0,0,-1,-10,-8,-20,-22,-22,-14,-12,-19,0,-29,-15,-15,-20,-19,-14,-25,-22,-54,-52,-46,-47,-58,-57,-43,-35,-40,-7,-18,-3,-25,-26,-38,-26,-37,-37,-41,-22,-41,-37,-38,-20,-16,-15,-102,-106,-300,-142,-136,-116,-93,-57,-70,-55,-95,-94,-189,-185,-172,-162,-1275,-1300,-1227,-538,-476,0,-1314,-1268,-29984,-29985,-29977,-29974,-29994,-29994,-29994,-29995,-29995,-29996]} 1. e4 {[%emt 0:01:38]} c5 {[%emt 0:00:15]} 2. Nf3 {[%emt 0:01:25]} Nc6 {[%emt 0:00:27]} 3. d4 {[%emt 0:00:32]} cxd4 {[%emt 0:00:07]} 4. Nxd4 {[%emt 0:00:08]} g6 {[%emt 0:00:05]} 5. Nxc6 {[%emt 0:00:15]} bxc6 {[%emt 0:00:20]} 6. Bc4 {[%emt 0:00:09]} Bg7 {[%emt 0:00:35]} 7. Nc3 {[%emt 0:00:17]} d6 {[%emt 0:02:14]} 8. Qf3 {[%emt 0:00:21]} Nf6 {[%emt 0:00:33]} 9. e5 {[%emt 0:00:53]} dxe5 {[%emt 0:00:33]} 10. Qxc6+ {[%emt 0:00:06] The position is equal.} Bd7 {[%emt 0:00:03]} 11. Qa6 {[%emt 0:00:12]} O-O {[%emt 0:01:59]} 12. O-O {[%emt 0:00:15]} Qc7 {[%emt 0:03:34]} 13. Bg5 {[%emt 0:10:07]} Bc6 {[%emt 0:06:34]} 14. Bxf6 {[%emt 0:05:23]} (14. Rad1 $5) 14... exf6 {[%emt 0:04:38]} 15. Nd5 {[%emt 0:01:05]} Bxd5 {[%emt 0:05:26]} 16. Bxd5 {[%emt 0:00:06]} Rab8 {[%emt 0:00:05]} 17. b3 {[%emt 0:08:13]} f5 {[%emt 0:06:04]} (17... Qxc2 $6 18. Rac1 (18. Qxa7 Rbd8 $16) 18... Qd2 19. Rfd1 $16) 18. c4 {[%emt 0:04:15]} e4 {[%emt 0:07:47]} 19. Rad1 {[%emt 0:00:50]} Bc3 20. Rc1 Be5 {[%emt 0:25:56]} 21. g3 {[%emt 0:14:55]} Bd4 {[%emt 0:00:16] Wards off c5} 22. Kg2 {[%emt 0:05:25]} Rfc8 {[%emt 0:01:45]} 23. Rfd1 {[%emt 0:07:04]} Bc5 {[%emt 0:05:59]} 24. Qf6 {[%emt 0:02:22]} (24. Rb1 $5) 24... Rb6 {[%emt 0:04:29]} 25. Qg5 {[%emt 0:01:36]} Re8 {[%emt 0:05:36]} 26. Re1 {[%emt 0:01:18]} Kg7 {[%emt 0:07:17]} 27. Re2 {[%emt 0:05:30]} Qe5 {[%emt 0:01:31]} 28. Rce1 {[%emt 0:04:20]} h6 {[%emt 0:03:14] Really sharp!} 29. Qc1 {[%emt 0:00:23] White is weak on the dark squares} g5 {[%emt 0:03:00]} 30. Qc2 {[%emt 0:01:07][%cal Rd5e4]} Qf6 {[%emt 0:01:01]} 31. g4 {[%emt 0:06:27]} fxg4 $17 {[%emt 0:01:49]} 32. Rxe4 $2 {[%emt 0:00:15]} (32. Bxe4 $17 {was necessary.} Qf4 33. Bd5 Rxe2 34. Rxe2) 32... Rxe4 {[%emt 0:00:36]} (32... Qf3+ $1 $19 33. Kf1 Qh3+ 34. Ke2 (34. Kg1 $2 Rf6 $19) 34... Rf6 35. Rxe8 Rxf2+ (35... Qxh2 $2 36. Kd1 $18) 36. Kd1 Rxc2 37. Kxc2 Qxh2+ 38. R1e2 Qf4) 33. Bxe4 {[%emt 0:03:33]} Qf4 {[%emt 0:00:28] ...Rf6 is the strong threat.} 34. Re2 {[%emt 0:03:14]} Rf6 {[%emt 0:00:19] ...Bd6 would now be deadly. Black has more active pieces.} 35. Qd2 {[%emt 0:03:10]} Qb8 {[%emt 0:00:22]} 36. Bb1 {[%emt 0:02:08]} Qb7+ {[%emt 0:02:27]} 37. Kg1 {[%emt 0:03:13] [#]} (37. Qd5 $17 Qxd5+ 38. cxd5) 37... g3 $1 $19 {[%emt 0:00:23][%mdl 512]} 38. hxg3 {[%emt 0:00:25] Hoping for Qd3.} Qf3 {[%emt 0:00:10]} 39. Qc2 $2 {[%emt 0:02:56]} (39. Be4 Qxg3+ 40. Kf1) 39... Qxg3+ {[%emt 0:00:02]} 40. Kf1 {[%emt 0:00:07]} Qh3+ {[%emt 0:00:14]} (40... Kf8 $142 {( -> ...Qh3+)} 41. Qf5 Rxf5 42. Bxf5 Qf4) 41. Kg1 {[%emt 0:00:36] Threatening mate with Qh7+.} Qg3+ $40 {[%emt 0:00:59][%mdl 128] Black attacks.} (41... Kf8 $142 42. Qe4 Qg3+ 43. Qg2 Qf4 (43... Bxf2+ 44. Rxf2 Qe3 45. Qf1 $11)) 42. Kf1 {[%emt 0:00:05] [#] Intending Qh7+ and mate.} Kf8 $1 {[%emt 0:00:48] Threatens to win with ...Qh3+.} 43. b4 {[%emt 0:00:25]} Qh3+ {[%emt 0:00:07] Black mates.} (43... Bxb4 44. Qh7 Qh3+ 45. Kg1 Qg4+ 46. Kf1 $11) 44. Kg1 {[%emt 0:00:40] [#]} Rf4 $1 {[%emt 0:00:09][%cal Rf4g4]} 45. Re4 {[%emt 0:01:44]} (45. Qe4 Rg4+) 45... Rxf2 {[%emt 0:00:18][%csl Gh3][%cal Rf2f1]} 46. Re8+ {[%emt 0:00:57]} Kxe8 {[%emt 0:00:08][%csl Gf2][%cal Rh3g2]} 47. Qe4+ {[%emt 0:00:03]} Kf8 {[%emt 0:00:13] Weighted Error Value: White=0.37/Black=0.41.  Loses game:     	White=1     	---        Mistake:       	White=3     	Black=1      Inaccurate:     	White=4     	Black=2      OK:         	White=10    	Black=10     Best:        	White=4     	Black=4      Strong:       	---       	Black=1      Brilliant:      	---       	Black=1} 0-1

[Event "Velammal AICF Women GM 2024"]
[Site "Chennai"]
[Date "2024.03.21"]
[Round "5.6"]
[White "Monnisha G K"]
[Black "Enkhtuul, Altan-Ulzii"]
[Result "1/2-1/2"]
[ECO "B03"]
[WhiteElo "2202"]
[BlackElo "2195"]
[Annotator "RC"]
[PlyCount "116"]
[EventDate "2024.03.18"]
[EventType "tourn"]
[EventCountry "IND"]
[SourceTitle "playchess.com"]
[Source "ChessBase"]
[SourceQuality "1"]
[TimeControl "5400+30"]

1. e4 {[%emt 0:00:05]} Nf6 {[%emt 0:00:11]} 2. e5 {[%emt 0:00:07]} Nd5 {[%emt 0:00:05]} 3. d4 {[%emt 0:00:06]} d6 {[%emt 0:00:04]} 4. c4 {[%emt 0:00:04]} Nb6 {[%emt 0:00:03]} 5. f4 {[%emt 0:00:04]} dxe5 {[%emt 0:00:04]} 6. fxe5 {[%emt 0:00:05]} Nc6 {[%emt 0:00:35]} 7. Be3 {[%emt 0:00:06]} Bf5 {[%emt 0:00:04]} 8. Nc3 {[%emt 0:00:12]} e6 {[%emt 0:00:04]} 9. Nf3 {[%emt 0:00:08]} Bb4 {[%emt 0:00:06]} 10. Be2 {[%emt 0:08:21]} Na5 {[%emt 0:03:28]} 11. Nd2 {[%emt 0:12:10]} O-O {[%emt 0:01:06]} 12. O-O {[%emt 0:00:52]} c5 {[%emt 0:06:17]} 13. a3 {[%emt 0:15:37]} Bxc3 {[%emt 0:13:19]} 14. bxc3 {[%emt 0:00:10]} Bg6 {[%emt 0:16:40]} 15. Rf4 {[%emt 0:08:04]} Rc8 {[%emt 0:07:50]} 16. Rc1 {[%emt 0:01:55]} Qc7 {[%emt 0:03:51]} 17. h4 {[%emt 0:06:38]} cxd4 {[%emt 0:04:05]} 18. cxd4 {[%emt 0:00:18]} Nd5 {[%emt 0:00:33]} 19. Rf3 {[%emt 0:02:11]} Nxe3 {[%emt 0:02:29]} 20. Rxe3 {[%emt 0:00:02]} f5 {[%emt 0:01:15]} 21. h5 {[%emt 0:04:55]} Be8 {[%emt 0:08:35]} 22. Qf1 {[%emt 0:07:08]} Rd8 {[%emt 0:07:32]} 23. Qf4 {[%emt 0:03:03]} Qb6 {[%emt 0:00:26]} 24. Rd3 {[%emt 0:08:06]} Nc6 {[%emt 0:05:50]} 25. Nb3 {[%emt 0:03:57]} a5 {[%emt 0:03:34]} 26. c5 {[%emt 0:07:19]} Qc7 {[%emt 0:00:14]} 27. Nd2 {[%emt 0:05:12]} Ne7 {[%emt 0:02:08]} 28. Nc4 {[%emt 0:02:42]} Nd5 {[%emt 0:00:02]} 29. Qg5 {[%emt 0:01:06]} Bb5 {[%emt 0:05:12]} 30. Rb3 {[%emt 0:01:59]} h6 {[%emt 0:06:04]} 31. Qd2 {[%emt 0:01:36]} Bxc4 {[%emt 0:00:24]} 32. Bxc4 {[%emt 0:00:09]} a4 {[%emt 0:00:52]} 33. Rb2 {[%emt 0:00:32]} Qf7 {[%emt 0:00:31]} 34. Rcb1 {[%emt 0:00:44]} Qxh5 {[%emt 0:01:39]} 35. Rxb7 {[%emt 0:00:40]} f4 {[%emt 0:01:53]} 36. Be2 {[%emt 0:00:54]} f3 {[%emt 0:00:52]} 37. Bxf3 {[%emt 0:00:08]} Rxf3 {[%emt 0:00:31]} 38. gxf3 {[%emt 0:00:07]} Kh7 {[%emt 0:00:29]} 39. Qg2 {[%emt 0:00:36]} Rg8 {[%emt 0:00:15]} 40. Qg4 {[%emt 0:00:23]} Qe8 {[%emt 0:00:42]} 41. R1b2 {[%emt 0:00:56]} Ne3 {[%emt 0:00:24]} 42. Qe4+ {[%emt 0:00:08]} Nf5 {[%emt 0:00:03]} 43. c6 {[%emt 0:01:29]} Qa8 {[%emt 0:00:57]} 44. c7 {[%emt 0:00:00]} Qa5 {[%emt 0:00:07]} 45. R2b4 {[%emt 0:00:18]} Rc8 {[%emt 0:00:40]} 46. Qc2 {[%emt 0:00:23]} h5 {[%emt 0:00:50]} 47. Qxa4 {[%emt 0:00:40]} Qd5 {[%emt 0:00:10]} 48. Qb3 {[%emt 0:00:25]} Qd7 {[%emt 0:00:20]} 49. Qc2 {[%emt 0:00:27]} Qe7 {[%emt 0:00:27]} 50. Qg2 {[%emt 0:00:59]} Qh4 {[%emt 0:00:22]} 51. Qf2 {[%emt 0:01:04]} Ng3 {[%emt 0:00:40]} 52. Qc2+ {[%emt 0:00:24]} Kh6 {[%emt 0:00:35]} 53. Qg2 {[%emt 0:00:11]} Nf5 {[%emt 0:00:14]} 54. Rb8 {[%emt 0:00:53]} Qe1+ {[%emt 0:00:19]} 55. Kh2 {[%emt 0:00:04]} Qh4+ {[%emt 0:00:08]} 56. Kg1 {[%emt 0:00:13]} Qe1+ {[%emt 0:00:04]} 57. Qf1 {[%emt 0:00:47]} Qg3+ {[%emt 0:00:04]} 58. Qg2 {[%emt 0:00:22]} Qe1+ {[%emt 0:00:06]} 1/2-1/2

[Event "Velammal AICF Women GM 2024"]
[Site "Chennai"]
[Date "2024.03.21"]
[Round "6.1"]
[White "Bommini Mounika Akshaya"]
[Black "Enkhtuul, Altan-Ulzii"]
[Result "0-1"]
[ECO "A72"]
[WhiteElo "2134"]
[BlackElo "2195"]
[Annotator "RC"]
[PlyCount "78"]
[EventDate "2024.03.18"]
[EventType "tourn"]
[EventCountry "IND"]
[SourceTitle "playchess.com"]
[Source "ChessBase"]
[SourceQuality "1"]
[TimeControl "5400+30"]

1. d4 {[%emt 0:00:13]} Nf6 {[%emt 0:00:06]} 2. c4 {[%emt 0:00:10]} c5 {[%emt 0:00:19]} 3. d5 {[%emt 0:00:10]} e6 {[%emt 0:00:04]} 4. Nc3 {[%emt 0:00:20]} exd5 {[%emt 0:00:04]} 5. cxd5 {[%emt 0:00:15]} d6 {[%emt 0:00:06]} 6. e4 {[%emt 0:00:19]} g6 {[%emt 0:00:07]} 7. Be2 {[%emt 0:00:39]} Bg7 {[%emt 0:00:05]} 8. Nf3 {[%emt 0:00:18]} O-O {[%emt 0:01:55]} 9. Be3 {[%emt 0:01:34]} b5 {[%emt 0:05:50]} 10. e5 {[%emt 0:00:08]} dxe5 {[%emt 0:13:29]} 11. Bxc5 {[%emt 0:00:06]} Re8 {[%emt 0:03:58]} 12. Bxb5 {[%emt 0:00:07]} Nbd7 {[%emt 0:06:48]} 13. Be3 {[%emt 0:00:07]} Ng4 {[%emt 0:02:09]} 14. O-O {[%emt 0:00:14]} Nxe3 {[%emt 0:13:34]} 15. fxe3 {[%emt 0:00:02]} Qb6 {[%emt 0:00:10]} 16. Qe2 {[%emt 0:06:44]} Rb8 {[%emt 0:03:32]} 17. Nd2 {[%emt 0:11:10]} a6 {[%emt 0:05:46]} 18. Nc4 {[%emt 0:06:06]} Qc7 {[%emt 0:03:41]} 19. Bc6 {[%emt 0:08:50]} f5 {[%emt 0:06:58]} 20. e4 {[%emt 0:08:34]} f4 {[%emt 0:00:57]} 21. Rac1 {[%emt 0:03:29]} Rf8 {[%emt 0:02:58]} 22. Ba4 {[%emt 0:11:13]} Nf6 {[%emt 0:09:07]} 23. d6 {[%emt 0:05:06]} Qc5+ {[%emt 0:00:08]} 24. Kh1 {[%emt 0:01:43]} Bg4 {[%emt 0:00:56]} 25. Qd3 {[%emt 0:00:55]} Be6 {[%emt 0:00:18]} 26. Bb3 {[%emt 0:03:03]} Ng4 {[%emt 0:01:15]} 27. Nd1 {[%emt 0:01:58]} Kh8 {[%emt 0:00:41]} 28. Rc2 {[%emt 0:09:01]} Rbd8 {[%emt 0:00:11]} 29. Nf2 {[%emt 0:13:11]} Bxc4 {[%emt 0:01:06]} 30. Bxc4 {[%emt 0:04:21]} Ne3 {[%emt 0:00:34]} 31. Rc3 {[%emt 0:01:11]} Nxf1 {[%emt 0:00:37]} 32. Qxf1 {[%emt 0:00:05]} Rxd6 {[%emt 0:01:41]} 33. Bd5 {[%emt 0:02:06]} Qd4 {[%emt 0:02:15]} 34. Qe2 {[%emt 0:00:48]} Rb6 {[%emt 0:00:59]} 35. Nd1 {[%emt 0:01:49]} Rxb2 {[%emt 0:00:37]} 36. Nxb2 {[%emt 0:01:45]} Qxc3 {[%emt 0:00:07]} 37. h3 {[%emt 0:00:21]} f3 {[%emt 0:01:13]} 38. gxf3 {[%emt 0:00:30]} Rxf3 {[%emt 0:00:07]} 39. Kg2 {[%emt 0:00:35]} Rg3+ {[%emt 0:00:27]} 0-1